[Event "FIDE World Cadets GU10 2022"]
[Site "Batumi"]
[Date "2022.09.16"]
[Round "1"]
[White "Chiokadze, Barbare"]
[Black "Pehlivanova, Aleksandra"]
[Result "0-1"]
[ECO "A57"]
[WhiteElo "1120"]
[BlackElo "1406"]
[Annotator "NA COMBH"]
[PlyCount "116"]
[EventDate "2022.09.16"]
[EventType "swiss"]
[EventCountry "GEO"]
[SourceTitle "playchess.com"]
[Source "ChessBase"]
[SourceQuality "1"]
[TimeControl "5400+30"]

1. d4 {[%emt 0:01:00]} Nf6 {[%emt 0:01:00]} 2. c4 {[%emt 0:00:30]} c5 {[%emt 0:00:30]} 3. d5 {[%emt 0:00:30]} b5 {[%emt 0:00:30]} 4. cxb5 {[%emt 0:00:00]} a6 {[%emt 0:00:00]} 5. b6 {[%emt 0:00:00]} e6 {[%emt 0:01:00]} 6. Nc3 {[%emt 0:00:00]} Nxd5 {[%emt 0:00:30]} 7. Nxd5 {[%emt 0:00:00]} exd5 {[%emt 0:00:30]} 8. Qxd5 {[%emt 0:00:30]} Nc6 {[%emt 0:00:00]} 9. Nf3 {[%emt 0:02:30]} Rb8 {[%emt 0:00:00]} 10. Ne5 {[%emt 0:08:30]} Qf6 {[%emt 0:06:30]} 11. Nxc6 {[%emt 0:00:30]} dxc6 {[%emt 0:01:30]} 12. Qe4+ {[%emt 0:00:30]} Be7 {[%emt 0:02:30]} 13. e3 {[%emt 0:08:30]} Bf5 {[%emt 0:11:30]} 14. Qf3 {[%emt 0:00:30]} Rxb6 {[%emt 0:04:30]} 15. Qf4 {[%emt 0:07:30]} O-O {[%emt 0:06:30]} 16. Be2 {[%emt 0:07:30]} Bd6 {[%emt 0:04:30]} 17. Qa4 {[%emt 0:01:30]} Be5 {[%emt 0:03:30]} 18. Qa5 {[%emt 0:03:30]} Rxb2 {[%emt 0:04:30]} 19. Qxa6 {[%emt 0:03:30]} Bc3+ {[%emt 0:02:30]} 20. Kf1 {[%emt 0:00:30]} Rxe2 {[%emt 0:00:30]} 21. Qxe2 {[%emt 0:00:30]} Bxa1 {[%emt 0:01:30]} 22. Ba3 {[%emt 0:00:30]} Qc3 {[%emt 0:00:30]} 23. Qd1 {[%emt 0:02:30]} Bd3+ {[%emt 0:03:30]} 24. Kg1 {[%emt 0:00:00]} Qxa3 {[%emt 0:00:30]} 25. h3 {[%emt 0:01:00]} Bf6 {[%emt 0:01:30]} 26. Qd2 {[%emt 0:01:30]} Qc3 {[%emt 0:01:30]} 27. Qxc3 {[%emt 0:00:30]} Bxc3 {[%emt 0:00:30]} 28. Kh2 {[%emt 0:01:30]} h6 {[%emt 0:00:00]} 29. Rd1 {[%emt 0:01:30]} c4 {[%emt 0:00:00]} 30. Rc1 {[%emt 0:02:30]} Bb2 {[%emt 0:01:30]} 31. Rd1 {[%emt 0:00:30]} c3 {[%emt 0:00:30]} 32. Rxd3 {[%emt 0:00:30]} c2 {[%emt 0:00:30]} 33. Rb3 {[%emt 0:00:30]} c1=Q {[%emt 0:00:00]} 34. a4 {[%emt 0:00:30]} Ra8 {[%emt 0:00:00]} 35. Rb4 {[%emt 0:00:00]} c5 {[%emt 0:00:30]} 36. Re4 {[%emt 0:00:00]} Qc2 {[%emt 0:00:00]} 37. Rg4 {[%emt 0:00:30]} Rxa4 {[%emt 0:00:00]} 38. Rxa4 {[%emt 0:00:00]} Qxa4 {[%emt 0:00:30]} 39. Kg3 {[%emt 0:00:00]} g5 {[%emt 0:00:30]} 40. Kh2 {[%emt 0:00:30]} Qc2 {[%emt 0:00:00]} 41. Kg3 {[%emt 0:00:30]} h5 {[%emt 0:00:00]} 42. Kf3 {[%emt 0:00:30]} f5 {[%emt 0:00:00]} 43. Kg3 {[%emt 0:00:00]} h4+ {[%emt 0:00:00]} 44. Kf3 {[%emt 0:00:00]} Qe4+ {[%emt 0:00:30]} 45. Ke2 {[%emt 0:00:00]} Qxg2 {[%emt 0:00:30]} 46. Kd3 {[%emt 0:00:00]} Qxf2 {[%emt 0:00:30]} 47. e4 {[%emt 0:00:30]} fxe4+ {[%emt 0:00:30]} 48. Kxe4 {[%emt 0:00:30]} Qf4+ {[%emt 0:00:30]} 49. Kd5 {[%emt 0:00:00]} c4 {[%emt 0:00:30]} 50. Kc5 {[%emt 0:00:00]} c3 {[%emt 0:00:00]} 51. Kd5 {[%emt 0:00:30]} c2 {[%emt 0:00:00]} 52. Kc5 {[%emt 0:00:00]} c1=Q+ {[%emt 0:00:30]} 53. Kd5 {[%emt 0:00:00]} Qd4+ {[%emt 0:00:30]} 54. Ke6 {[%emt 0:00:30]} Qce3+ {[%emt 0:00:00]} 55. Kf5 {[%emt 0:00:00]} Qf6+ {[%emt 0:00:00]} 56. Kg4 {[%emt 0:00:00]} Qef4+ {[%emt 0:00:00]} 57. Kh5 {[%emt 0:00:30]} Qf7+ {[%emt 0:00:00]} 58. Kh6 {[%emt 0:00:30]} Qh7# {[%emt 0:00:30]} 0-1